[Event "Niedersachsen-ch A 2024"]
[Site "Verden Aller"]
[Date "2024.01.05"]
[Round "4.15"]
[White "Harms, Friedjof"]
[Black "Martin, Dennis"]
[Result "1/2-1/2"]
[ECO "B13"]
[WhiteElo "1844"]
[BlackElo "1991"]
[Annotator "NA RC"]
[PlyCount "144"]
[EventDate "2024.01.01"]
[EventType "swiss"]
[EventCountry "GER"]
[SourceTitle "playchess.com"]
[Source "ChessBase"]
[SourceQuality "1"]
[TimeControl "40/5400+30:1800+30"]

1. e4 {[%emt 0:00:05]} c6 {[%emt 0:00:01]} 2. d4 {[%emt 0:00:09]} d5 {[%emt 0:00:00]} 3. exd5 {[%emt 0:00:09]} cxd5 {[%emt 0:00:01]} 4. Bd3 {[%emt 0:00:08]} Nc6 {[%emt 0:00:01]} 5. c3 {[%emt 0:00:08]} Nf6 {[%emt 0:00:01]} 6. Bf4 {[%emt 0:00:09]} Bg4 {[%emt 0:00:04]} 7. Qb3 {[%emt 0:00:19]} Qd7 {[%emt 0:00:02]} 8. Nd2 {[%emt 0:00:10]} e6 {[%emt 0:00:01]} 9. h3 {[%emt 0:00:10]} Bh5 {[%emt 0:00:02]} 10. Ngf3 {[%emt 0:00:06]} Bd6 {[%emt 0:00:12]} 11. Bxd6 {[%emt 0:00:05]} Qxd6 {[%emt 0:00:01]} 12. O-O {[%emt 0:00:09]} O-O {[%emt 0:00:20]} 13. Rfe1 {[%emt 0:00:15]} Bg6 {[%emt 0:01:00]} 14. Bxg6 {[%emt 0:00:18]} hxg6 {[%emt 0:00:02]} 15. Ne5 {[%emt 0:00:14]} Na5 {[%emt 0:01:30]} 16. Qc2 {[%emt 0:04:25]} b5 {[%emt 0:04:12]} 17. a3 {[%emt 0:01:25]} Rfc8 {[%emt 0:01:36]} 18. Nd3 {[%emt 0:22:23]} Nc4 {[%emt 0:00:43]} 19. a4 {[%emt 0:24:35]} Nxd2 {[%emt 0:02:08]} 20. Qxd2 {[%emt 0:01:16]} Ne4 {[%emt 0:00:05]} 21. Qe2 {[%emt 0:03:48]} Qb6 {[%emt 0:02:22]} 22. axb5 {[%emt 0:09:07]} Qxb5 {[%emt 0:02:11]} 23. Nb4 {[%emt 0:08:26]} Qxe2 {[%emt 0:08:02]} 24. Rxe2 {[%emt 0:00:08]} a5 {[%emt 0:00:02]} 25. Nd3 {[%emt 0:02:23]} a4 {[%emt 0:00:46]} 26. f3 {[%emt 0:01:02]} Ng3 {[%emt 0:00:12]} 27. Rc2 {[%emt 0:01:23]} a3 {[%emt 0:00:27]} 28. Rxa3 {[%emt 0:03:33]} Rxa3 {[%emt 0:00:19]} 29. bxa3 {[%emt 0:00:09]} Rxc3 {[%emt 0:00:05]} 30. Rxc3 {[%emt 0:01:22]} Ne2+ {[%emt 0:00:02]} 31. Kf2 {[%emt 0:00:41]} Nxc3 {[%emt 0:00:02]} 32. Ke3 {[%emt 0:01:12]} g5 {[%emt 0:00:41]} 33. Nc5 {[%emt 0:04:42]} Kf8 {[%emt 0:00:05]} 34. Nd7+ {[%emt 0:06:04]} Ke7 {[%emt 0:01:04]} 35. Ne5 {[%emt 0:00:15]} f6 {[%emt 0:00:49]} 36. Nc6+ {[%emt 0:01:09]} Kd7 {[%emt 0:00:13]} 37. Nb4 {[%emt 0:01:09]} Na4 {[%emt 0:00:47]} 38. g3 {[%emt 0:03:43]} Nb6 {[%emt 0:00:52]} 39. Kd3 {[%emt 0:01:01]} Nc4 {[%emt 0:00:04]} 40. Nc2 {[%emt 0:01:14]} Kc6 {[%emt 0:00:05]} 41. h4 {[%emt 0:08:08]} gxh4 {[%emt 0:04:38]} 42. gxh4 {[%emt 0:00:02]} Kb5 {[%emt 0:00:23]} 43. h5 {[%emt 0:04:05]} Nd6 {[%emt 0:04:48]} 44. Ne3 {[%emt 0:01:27]} Ka4 {[%emt 0:00:44]} 45. Ng2 {[%emt 0:03:31]} Ne8 {[%emt 0:02:57]} 46. Nf4 {[%emt 0:06:00]} Nc7 {[%emt 0:00:05]} 47. Ng6 {[%emt 0:00:51]} Kxa3 {[%emt 0:00:15]} 48. Nf8 {[%emt 0:02:17]} Kb4 {[%emt 0:03:50]} 49. Nd7 {[%emt 0:00:42]} f5 {[%emt 0:00:39]} 50. Nc5 {[%emt 0:03:52]} e5 {[%emt 0:05:53]} 51. Nb7 {[%emt 0:00:33]} e4+ {[%emt 0:00:33]} 52. Ke3 {[%emt 0:01:03]} Ne6 {[%emt 0:01:11]} 53. fxe4 {[%emt 0:00:44]} fxe4 {[%emt 0:00:08]} 54. Nd6 {[%emt 0:00:28]} Kc3 {[%emt 0:01:53]} 55. Nf5 {[%emt 0:01:07]} Kc4 {[%emt 0:02:45]} 56. Nd6+ {[%emt 0:00:33]} Kc3 {[%emt 0:04:55]} 57. Nf5 {[%emt 0:00:19]} Kb4 {[%emt 0:09:01]} 58. Nd6 {[%emt 0:00:39]} Ka5 {[%emt 0:00:12]} 59. Nxe4 {[%emt 0:01:10]} dxe4 {[%emt 0:00:01]} 60. Kxe4 {[%emt 0:00:00]} Kb6 {[%emt 0:00:01]} 61. Ke5 {[%emt 0:01:05]} Nf8 {[%emt 0:00:09]} 62. Kd6 {[%emt 0:00:26]} Nh7 {[%emt 0:00:03]} 63. Ke6 {[%emt 0:00:52]} Nf6 {[%emt 0:00:23]} 64. h6 {[%emt 0:00:57]} gxh6 {[%emt 0:00:44]} 65. Kxf6 {[%emt 0:00:05]} Kc6 {[%emt 0:00:05]} 66. Ke6 {[%emt 0:00:50]} Kc7 {[%emt 0:00:05]} 67. Ke7 {[%emt 0:00:54]} Kc6 {[%emt 0:00:01]} 68. Ke6 {[%emt 0:00:10]} Kc7 {[%emt 0:00:02]} 69. d5 {[%emt 0:00:36]} Kd8 {[%emt 0:00:02]} 70. Kf5 {[%emt 0:00:25]} Kd7 {[%emt 0:00:01]} 71. Kg6 {[%emt 0:00:07]} Kd6 {[%emt 0:00:01]} 72. Kxh6 {[%emt 0:00:06]} Kxd5 {[%emt 0:00:15]} 1/2-1/2

[Event "Niedersachsen-ch A 2024"]
[Site "Verden Aller"]
[Date "2024.01.05"]
[Round "4.16"]
[White "Weigand, Anton"]
[Black "Hoke, Adrian"]
[Result "1-0"]
[ECO "C77"]
[WhiteElo "2013"]
[BlackElo "1765"]
[Annotator "NA RC"]
[PlyCount "45"]
[EventDate "2024.01.01"]
[EventType "swiss"]
[EventCountry "GER"]
[SourceTitle "playchess.com"]
[Source "ChessBase"]
[SourceQuality "1"]
[TimeControl "40/5400+30:1800+30"]

1. e4 {[%emt 0:00:57]} e5 {[%emt 0:00:15]} 2. Nf3 {[%emt 0:00:25]} Nc6 {[%emt 0:00:21]} 3. Bb5 {[%emt 0:00:12]} a6 {[%emt 0:00:22]} 4. Ba4 {[%emt 0:00:06]} Nf6 {[%emt 0:00:04]} 5. Nc3 {[%emt 0:00:05]} b5 {[%emt 0:01:36]} 6. Bb3 {[%emt 0:00:43]} Bc5 {[%emt 0:03:33]} 7. a4 {[%emt 0:00:47]} b4 {[%emt 0:01:21]} 8. Nd5 {[%emt 0:01:21]} Nxe4 {[%emt 0:03:26]} 9. d4 {[%emt 0:04:24]} Nxd4 {[%emt 0:11:03]} 10. Nxd4 {[%emt 0:00:17]} exd4 {[%emt 0:00:23]} 11. Qg4 {[%emt 0:06:01]} O-O {[%emt 0:01:14]} 12. Bh6 {[%emt 0:02:03]} Ng5 {[%emt 0:00:46]} 13. Bxg5 {[%emt 0:02:50]} Qe8+ {[%emt 0:02:36]} 14. Kf1 {[%emt 0:02:43]} d6 {[%emt 0:03:23]} 15. Qg3 {[%emt 0:02:52]} Qe5 {[%emt 0:00:37]} 16. f4 {[%emt 1:12:44]} Qe4 {[%emt 0:06:02]} 17. Re1 {[%emt 0:00:00]} Qxe1+ {[%emt 0:01:13]} 18. Kxe1 {[%emt 0:00:00]} Re8+ {[%emt 0:00:55]} 19. Kd1 {[%emt 0:00:00]} h5 {[%emt 0:01:33]} 20. h3 {[%emt 0:00:00]} Bf5 {[%emt 0:01:37]} 21. Nf6+ {[%emt 0:00:00]} gxf6 {[%emt 0:01:00]} 22. Bxf6+ {[%emt 0:00:00]} Bg6 {[%emt 0:00:03]} 23. Qxg6+ {[%emt 0:00:00]} 1-0

[Event "Niedersachsen-ch A 2024"]
[Site "Verden Aller"]
[Date "2024.01.05"]
[Round "4.17"]
[White "Kiesel, Harald"]
[Black "Drygala, Lars"]
[Result "0-1"]
[ECO "C10"]
[WhiteElo "1975"]
[BlackElo "1869"]
[Annotator "NA RC"]
[PlyCount "50"]
[EventDate "2024.01.01"]
[EventType "swiss"]
[EventCountry "GER"]
[SourceTitle "playchess.com"]
[Source "ChessBase"]
[SourceQuality "1"]
[TimeControl "40/5400+30:1800+30"]

1. e4 {[%emt 0:00:00]} e6 {[%emt 0:00:09]} 2. d4 {[%emt 0:00:06]} d5 {[%emt 0:00:08]} 3. Nc3 {[%emt 0:00:07]} dxe4 {[%emt 0:00:08]} 4. Nxe4 {[%emt 0:00:11]} Nf6 {[%emt 0:00:34]} 5. Nxf6+ {[%emt 0:00:46]} gxf6 {[%emt 0:00:08]} 6. Be3 {[%emt 0:06:00]} Nc6 {[%emt 0:00:29]} 7. Nf3 {[%emt 0:03:50]} b6 {[%emt 0:04:10]} 8. Bb5 {[%emt 0:06:01]} Qd6 {[%emt 0:00:46]} 9. O-O {[%emt 0:06:41]} Bb7 {[%emt 0:01:35]} 10. c4 {[%emt 0:04:10]} O-O-O {[%emt 0:00:48]} 11. Qa4 {[%emt 0:03:04]} Nb8 {[%emt 0:09:30]} 12. c5 {[%emt 0:11:35]} Qd5 {[%emt 0:00:43]} 13. Rfc1 {[%emt 0:03:15]} Rg8 {[%emt 0:04:00]} 14. Be2 {[%emt 0:11:53]} Nc6 {[%emt 0:07:29]} 15. Kf1 {[%emt 0:05:51]} Kb8 {[%emt 0:04:39]} 16. b4 {[%emt 0:03:01]} Qe4 {[%emt 0:02:58]} 17. b5 {[%emt 0:03:13]} Nxd4 {[%emt 0:05:52]} 18. c6 {[%emt 0:17:17]} Bc8 {[%emt 0:00:05]} 19. Nxd4 {[%emt 0:05:42]} Qxg2+ {[%emt 0:02:43]} 20. Ke1 {[%emt 0:00:12]} e5 {[%emt 0:01:27]} 21. Nb3 {[%emt 0:01:53]} Bh3 {[%emt 0:01:39]} 22. Nd2 {[%emt 0:00:57]} Qh1+ {[%emt 0:00:19]} 23. Nf1 {[%emt 0:01:16]} Rg1 {[%emt 0:00:18]} 24. Qc4 {[%emt 0:02:43]} Bb4+ {[%emt 0:51:53]} 25. Qxb4 {[%emt 0:03:16]} Rxf1+ {[%emt 0:00:30]} 0-1

[Event "Niedersachsen-ch A 2024"]
[Site "Verden Aller"]
[Date "2024.01.05"]
[Round "4.18"]
[White "Moeller, Jonas"]
[Black "Ehlert, Horst"]
[Result "1/2-1/2"]
[ECO "B29"]
[WhiteElo "1836"]
[BlackElo "1940"]
[Annotator "NA RC"]
[PlyCount "104"]
[EventDate "2024.01.01"]
[EventType "swiss"]
[EventCountry "GER"]
[SourceTitle "playchess.com"]
[Source "ChessBase"]
[SourceQuality "1"]
[TimeControl "40/5400+30:1800+30"]

1. e4 {[%emt 0:00:04]} c5 {[%emt 0:00:17]} 2. Nf3 {[%emt 0:00:06]} Nf6 {[%emt 0:02:01]} 3. e5 {[%emt 0:02:35]} Nd5 {[%emt 0:00:02]} 4. Nc3 {[%emt 0:12:51]} e6 {[%emt 0:07:37]} 5. Nxd5 {[%emt 0:13:46]} exd5 {[%emt 0:00:50]} 6. d4 {[%emt 0:01:56]} Nc6 {[%emt 0:00:56]} 7. dxc5 {[%emt 0:05:03]} Bxc5 {[%emt 0:03:47]} 8. Bd3 {[%emt 0:13:54]} d6 {[%emt 0:10:13]} 9. exd6 {[%emt 0:05:35]} O-O {[%emt 0:08:11]} 10. O-O {[%emt 0:03:10]} Qxd6 {[%emt 0:02:00]} 11. h3 {[%emt 0:05:01]} Nb4 {[%emt 0:08:42]} 12. c3 {[%emt 0:08:16]} Nxd3 {[%emt 0:04:06]} 13. Qxd3 {[%emt 0:00:02]} h6 {[%emt 0:01:11]} 14. Be3 {[%emt 0:02:13]} Bxe3 {[%emt 0:19:48]} 15. Qxe3 {[%emt 0:00:51]} Bf5 {[%emt 0:00:50]} 16. Nd4 {[%emt 0:01:57]} Bg6 {[%emt 0:00:56]} 17. Rfe1 {[%emt 0:04:23]} Qb6 {[%emt 0:02:31]} 18. Nb3 {[%emt 0:02:38]} Qb5 {[%emt 0:06:57]} 19. Qd2 {[%emt 0:01:01]} Rfe8 {[%emt 0:00:49]} 20. Rad1 {[%emt 0:04:28]} Rxe1+ {[%emt 0:02:37]} 21. Rxe1 {[%emt 0:00:01]} Re8 {[%emt 0:02:30]} 22. Rxe8+ {[%emt 0:01:18]} Qxe8 {[%emt 0:00:37]} 23. f3 {[%emt 0:02:20]} Qa4 {[%emt 0:02:22]} 24. Nc1 {[%emt 0:01:17]} b6 {[%emt 0:01:22]} 25. a3 {[%emt 0:01:20]} Qb5 {[%emt 0:00:56]} 26. Ne2 {[%emt 0:00:53]} Bf5 {[%emt 0:04:05]} 27. Nd4 {[%emt 0:01:42]} Qd7 {[%emt 0:00:01]} 28. Qe3 {[%emt 0:01:49]} Bb1 {[%emt 0:01:27]} 29. Qe5 {[%emt 0:00:23]} Bd3 {[%emt 0:00:40]} 30. Qe3 {[%emt 0:00:42]} Bb1 {[%emt 0:00:52]} 31. Qe5 {[%emt 0:00:56]} Bd3 {[%emt 0:02:59]} 32. Kh2 {[%emt 0:00:42]} Bb1 {[%emt 0:00:11]} 33. Ne2 {[%emt 0:00:56]} Ba2 {[%emt 0:00:58]} 34. Nf4 {[%emt 0:00:34]} f6 {[%emt 0:01:58]} 35. Qe6+ {[%emt 0:01:06]} Qxe6 {[%emt 0:00:03]} 36. Nxe6 {[%emt 0:00:03]} Kf7 {[%emt 0:00:41]} 37. Nd4 {[%emt 0:01:09]} g5 {[%emt 0:00:58]} 38. Kg3 {[%emt 0:01:26]} a5 {[%emt 0:01:22]} 39. Kf2 {[%emt 0:00:27]} Kg6 {[%emt 0:00:30]} 40. Ke3 {[%emt 0:00:56]} f5 {[%emt 0:00:53]} 41. g3 {[%emt 0:10:45]} h5 {[%emt 0:07:18]} 42. f4 {[%emt 0:07:14]} h4 {[%emt 0:17:14]} 43. gxh4 {[%emt 0:02:12]} gxh4 {[%emt 0:00:02]} 44. Nf3 {[%emt 0:00:32]} Kh5 {[%emt 0:00:20]} 45. Kd4 {[%emt 0:01:50]} Bb1 {[%emt 0:02:54]} 46. Ke5 {[%emt 0:01:21]} Be4 {[%emt 0:00:52]} 47. Ng5 {[%emt 0:00:16]} a4 {[%emt 0:00:26]} 48. Kf6 {[%emt 0:03:37]} Kh6 {[%emt 0:01:29]} 49. Ne6 {[%emt 0:01:06]} Bg2 {[%emt 0:00:28]} 50. Ng5 {[%emt 0:00:16]} Be4 {[%emt 0:00:04]} 51. Nf7+ {[%emt 0:01:51]} Kh5 {[%emt 0:00:07]} 52. Ng5 {[%emt 0:00:34]} Kh6 {[%emt 0:00:18]} 1/2-1/2

[Event "Niedersachsen-ch A 2024"]
[Site "Verden Aller"]
[Date "2024.01.05"]
[Round "4.19"]
[White "Carsten, Juergen"]
[Black "Gottschalk, Siegfried"]
[Result "1/2-1/2"]
[ECO "C01"]
[WhiteElo "1749"]
[BlackElo "1939"]
[Annotator "NA"]
[PlyCount "69"]
[EventDate "2024.01.01"]
[EventType "swiss"]
[EventCountry "GER"]
[SourceTitle "playchess.com"]
[Source "ChessBase"]
[SourceQuality "1"]
[TimeControl "40/5400+30:1800+30"]

1. e4 {[%emt 0:00:07]} e6 {[%emt 0:00:45]} 2. d4 {[%emt 0:00:51]} d5 {[%emt 0:00:05]} 3. exd5 {[%emt 0:01:00]} exd5 {[%emt 0:00:06]} 4. Bd3 {[%emt 0:01:01]} Nc6 {[%emt 0:00:13]} 5. c3 {[%emt 0:01:29]} Bd6 {[%emt 0:00:19]} 6. h3 {[%emt 0:00:54]} Nge7 {[%emt 0:02:25]} 7. Qc2 {[%emt 0:01:49]} Be6 {[%emt 0:05:49]} 8. Ne2 {[%emt 0:08:14]} Qd7 {[%emt 0:06:15]} 9. Nf4 {[%emt 0:09:13]} Bxf4 {[%emt 0:10:04]} 10. Bxf4 {[%emt 0:00:49]} O-O-O {[%emt 0:00:12]} 11. Nd2 {[%emt 0:04:14]} Bf5 {[%emt 0:02:36]} 12. O-O-O {[%emt 0:05:28]} Bxd3 {[%emt 0:06:48]} 13. Qxd3 {[%emt 0:01:13]} Ng6 {[%emt 0:00:02]} 14. Bh2 {[%emt 0:03:24]} Rde8 {[%emt 0:02:21]} 15. Nb3 {[%emt 0:03:11]} Nd8 {[%emt 0:13:48]} 16. Nc5 {[%emt 0:04:59]} Qc6 {[%emt 0:02:38]} 17. Rhf1 {[%emt 0:17:36]} Ne7 {[%emt 0:14:00]} 18. h4 {[%emt 0:04:49]} Qg6 {[%emt 0:03:23]} 19. Qh3+ {[%emt 0:02:09]} f5 {[%emt 0:02:03]} 20. f3 {[%emt 0:02:35]} Ne6 {[%emt 0:04:01]} 21. Nxe6 {[%emt 0:02:43]} Qxe6 {[%emt 0:00:05]} 22. Rfe1 {[%emt 0:00:38]} Qd7 {[%emt 0:01:53]} 23. Kb1 {[%emt 0:02:29]} g6 {[%emt 0:03:37]} 24. g4 {[%emt 0:02:27]} Rhf8 {[%emt 0:01:35]} 25. h5 {[%emt 0:03:19]} g5 {[%emt 0:07:00]} 26. Qg2 {[%emt 0:02:44]} h6 {[%emt 0:01:27]} 27. Re2 {[%emt 0:01:17]} Nc6 {[%emt 0:01:40]} 28. Rde1 {[%emt 0:00:39]} f4 {[%emt 0:01:17]} 29. Qf2 {[%emt 0:01:17]} Kd8 {[%emt 0:00:34]} 30. Bg1 {[%emt 0:01:00]} Rxe2 {[%emt 0:02:36]} 31. Qxe2 {[%emt 0:01:03]} Re8 {[%emt 0:00:08]} 32. Qd2 {[%emt 0:01:34]} Qh7+ {[%emt 0:01:11]} 33. Kc1 {[%emt 0:01:08]} Rxe1+ {[%emt 0:01:02]} 34. Qxe1 {[%emt 0:00:23]} Kd7 {[%emt 0:01:48]} 35. Qe2 {[%emt 0:01:35]} 1/2-1/2

[Event "Niedersachsen-ch A 2024"]
[Site "Verden Aller"]
[Date "2024.01.05"]
[Round "4.20"]
[White "Zweigait, Leon"]
[Black "Heirich, Andreas"]
[Result "1/2-1/2"]
[ECO "B13"]
[WhiteElo "1526"]
[BlackElo "1925"]
[Annotator "NA RC"]
[PlyCount "116"]
[EventDate "2024.01.01"]
[EventType "swiss"]
[EventCountry "GER"]
[SourceTitle "playchess.com"]
[Source "ChessBase"]
[SourceQuality "1"]
[TimeControl "40/5400+30:1800+30"]

1. e4 {[%emt 0:00:03]} c6 {[%emt 0:00:10]} 2. c4 {[%emt 0:00:04]} d5 {[%emt 0:00:31]} 3. exd5 {[%emt 0:00:08]} cxd5 {[%emt 0:00:15]} 4. d4 {[%emt 0:00:15]} Nf6 {[%emt 0:01:23]} 5. Nc3 {[%emt 0:00:11]} Nc6 {[%emt 0:00:50]} 6. cxd5 {[%emt 0:00:11]} Nxd5 {[%emt 0:00:17]} 7. Qb3 {[%emt 0:00:16]} e6 {[%emt 0:03:11]} 8. Nf3 {[%emt 0:00:32]} Be7 {[%emt 0:04:18]} 9. Bc4 {[%emt 0:01:27]} Na5 {[%emt 0:02:52]} 10. Bb5+ {[%emt 0:03:56]} Bd7 {[%emt 0:01:01]} 11. Qa4 {[%emt 0:00:25]} Nc6 {[%emt 0:04:03]} 12. Qb3 {[%emt 0:06:08]} Na5 {[%emt 0:02:09]} 13. Qa4 {[%emt 0:03:59]} Nc6 {[%emt 0:00:22]} 14. Qc4 {[%emt 0:03:01]} a6 {[%emt 0:03:49]} 15. Bxc6 {[%emt 0:01:14]} Bxc6 {[%emt 0:00:03]} 16. Be3 {[%emt 0:03:35]} Rc8 {[%emt 0:01:08]} 17. Qb3 {[%emt 0:00:50]} Nxc3 {[%emt 0:01:59]} 18. bxc3 {[%emt 0:00:09]} Bxf3 {[%emt 0:00:23]} 19. gxf3 {[%emt 0:00:09]} Qd5 {[%emt 0:00:17]} 20. Qxd5 {[%emt 0:01:29]} exd5 {[%emt 0:00:02]} 21. Kd2 {[%emt 0:00:17]} O-O {[%emt 0:04:32]} 22. Rhb1 {[%emt 0:00:35]} Rc7 {[%emt 0:00:42]} 23. Bf4 {[%emt 0:01:13]} Rd7 {[%emt 0:00:19]} 24. Rb6 {[%emt 0:00:20]} Bd8 {[%emt 0:02:15]} 25. Rd6 {[%emt 0:04:26]} Rxd6 {[%emt 0:02:13]} 26. Bxd6 {[%emt 0:00:03]} Re8 {[%emt 0:03:10]} 27. Rb1 {[%emt 0:00:46]} b6 {[%emt 0:00:47]} 28. Kd3 {[%emt 0:01:45]} Re6 {[%emt 0:01:50]} 29. Be5 {[%emt 0:00:26]} f6 {[%emt 0:01:27]} 30. Bf4 {[%emt 0:02:23]} Rc6 {[%emt 0:00:38]} 31. Rb4 {[%emt 0:01:35]} Kf7 {[%emt 0:02:19]} 32. c4 {[%emt 0:05:43]} Ke6 {[%emt 0:01:59]} 33. Bg3 {[%emt 0:07:41]} Be7 {[%emt 0:04:29]} 34. Ra4 {[%emt 0:00:54]} a5 {[%emt 0:00:23]} 35. c5 {[%emt 0:05:19]} bxc5 {[%emt 0:04:29]} 36. Rxa5 {[%emt 0:00:09]} c4+ {[%emt 0:00:44]} 37. Kc3 {[%emt 0:00:55]} g5 {[%emt 0:01:30]} 38. f4 {[%emt 0:01:03]} Bb4+ {[%emt 0:17:15]} 39. Kxb4 {[%emt 0:00:16]} c3 {[%emt 0:00:02]} 40. fxg5 {[%emt 0:04:44]} fxg5 {[%emt 0:01:00]} 41. Ra3 {[%emt 0:30:33]} c2 {[%emt 0:30:10]} 42. Re3+ {[%emt 0:00:02]} Kf5 {[%emt 0:01:37]} 43. Re1 {[%emt 0:00:05]} c1=Q {[%emt 0:00:09]} 44. Rxc1 {[%emt 0:00:10]} Rxc1 {[%emt 0:00:01]} 45. Kb5 {[%emt 0:01:11]} Ke4 {[%emt 0:00:15]} 46. Be5 {[%emt 0:00:54]} Rb1+ {[%emt 0:02:19]} 47. Ka5 {[%emt 0:00:24]} Kf3 {[%emt 0:00:54]} 48. a4 {[%emt 0:00:56]} Kxf2 {[%emt 0:00:30]} 49. Ka6 {[%emt 0:00:24]} h5 {[%emt 0:00:24]} 50. a5 {[%emt 0:00:30]} Ke3 {[%emt 0:01:25]} 51. Ka7 {[%emt 0:00:19]} g4 {[%emt 0:00:15]} 52. a6 {[%emt 0:00:15]} h4 {[%emt 0:00:13]} 53. Ka8 {[%emt 0:00:15]} g3 {[%emt 0:00:50]} 54. hxg3 {[%emt 0:00:12]} hxg3 {[%emt 0:00:02]} 55. Bxg3 {[%emt 0:00:24]} Kxd4 {[%emt 0:00:02]} 56. a7 {[%emt 0:00:28]} Kc4 {[%emt 0:00:36]} 57. Bf2 {[%emt 0:00:48]} d4 {[%emt 0:11:34]} 58. Bxd4 {[%emt 0:00:23]} Kxd4 {[%emt 0:00:31]} 1/2-1/2

[Event "Niedersachsen-ch A 2024"]
[Site "Verden Aller"]
[Date "2024.01.05"]
[Round "4.21"]
[White "Hoke, Joshua"]
[Black "Kozik, Andreas"]
[Result "1-0"]
[ECO "C04"]
[WhiteElo "1600"]
[BlackElo "1912"]
[Annotator "NA RC"]
[PlyCount "141"]
[EventDate "2024.01.01"]
[EventType "swiss"]
[EventCountry "GER"]
[SourceTitle "playchess.com"]
[Source "ChessBase"]
[SourceQuality "1"]
[TimeControl "40/5400+30:1800+30"]

1. e4 {[%emt 0:02:36]} e6 {[%emt 0:00:07]} 2. d4 {[%emt 0:00:16]} d5 {[%emt 0:00:07]} 3. Nd2 {[%emt 0:00:05]} Nc6 {[%emt 0:00:29]} 4. c3 {[%emt 0:02:00]} e5 {[%emt 0:00:37]} 5. dxe5 {[%emt 0:08:48]} dxe4 {[%emt 0:00:38]} 6. Qc2 {[%emt 0:02:41]} Qe7 {[%emt 0:15:55]} 7. Qxe4 {[%emt 0:07:08]} Qxe5 {[%emt 0:00:19]} 8. Ngf3 {[%emt 0:01:23]} Qxe4+ {[%emt 0:02:14]} 9. Nxe4 {[%emt 0:01:14]} Bf5 {[%emt 0:00:39]} 10. Ng3 {[%emt 0:00:53]} Bg4 {[%emt 0:00:18]} 11. Be2 {[%emt 0:01:20]} Nf6 {[%emt 0:05:33]} 12. h3 {[%emt 0:02:19]} Be6 {[%emt 0:05:49]} 13. O-O {[%emt 0:01:25]} Bd6 {[%emt 0:01:33]} 14. Ng5 {[%emt 0:02:31]} Bd7 {[%emt 0:06:12]} 15. N5e4 {[%emt 0:04:50]} Be7 {[%emt 0:02:11]} 16. Nxf6+ {[%emt 0:04:51]} Bxf6 {[%emt 0:00:06]} 17. Nh5 {[%emt 0:10:43]} O-O-O {[%emt 0:30:39]} 18. Nxf6 {[%emt 0:01:17]} gxf6 {[%emt 0:00:05]} 19. Be3 {[%emt 0:01:02]} Kb8 {[%emt 0:01:34]} 20. Rad1 {[%emt 0:02:54]} Rhg8 {[%emt 0:02:14]} 21. Kh2 {[%emt 0:00:51]} Ne5 {[%emt 0:05:19]} 22. Rd4 {[%emt 0:18:50]} Bc6 {[%emt 0:02:43]} 23. Rxd8+ {[%emt 0:01:17]} Rxd8 {[%emt 0:02:55]} 24. Rd1 {[%emt 0:03:23]} Rg8 {[%emt 0:00:07]} 25. f3 {[%emt 0:02:26]} Ng6 {[%emt 0:02:34]} 26. Bd4 {[%emt 0:03:40]} Ne5 {[%emt 0:01:29]} 27. Bf2 {[%emt 0:05:44]} Ng6 {[%emt 0:00:43]} 28. Rd4 {[%emt 0:00:32]} f5 {[%emt 0:06:58]} 29. b4 {[%emt 0:01:46]} b6 {[%emt 0:00:43]} 30. b5 {[%emt 0:00:47]} Bb7 {[%emt 0:00:05]} 31. a4 {[%emt 0:02:22]} Bc8 {[%emt 0:00:45]} 32. a5 {[%emt 0:01:42]} Be6 {[%emt 0:00:51]} 33. axb6 {[%emt 0:00:38]} axb6 {[%emt 0:00:40]} 34. Bg3 {[%emt 0:01:15]} Ne7 {[%emt 0:01:44]} 35. c4 {[%emt 0:00:26]} Nc8 {[%emt 0:01:39]} 36. Bf4 {[%emt 0:01:27]} Kb7 {[%emt 0:00:11]} 37. Kg1 {[%emt 0:00:36]} Ne7 {[%emt 0:00:20]} 38. Kf2 {[%emt 0:00:37]} Ng6 {[%emt 0:00:22]} 39. Bg3 {[%emt 0:00:29]} Ne7 {[%emt 0:00:13]} 40. Bh2 {[%emt 0:00:25]} Nc8 {[%emt 0:01:09]} 41. Rh4 {[%emt 0:30:27]} Ne7 {[%emt 0:30:42]} 42. Rd4 {[%emt 0:00:00]} Ng6 {[%emt 0:00:00]} 43. Bd3 {[%emt 0:00:00]} Ra8 {[%emt 0:00:00]} 44. g4 {[%emt 0:00:00]} Ra2+ {[%emt 0:00:00]} 45. Be2 {[%emt 0:00:00]} Kc8 {[%emt 0:00:00]} 46. Bg3 {[%emt 0:00:00]} Nf8 {[%emt 0:00:00]} 47. Ke3 {[%emt 0:00:00]} Ng6 {[%emt 0:00:00]} 48. Bd3 {[%emt 0:00:00]} Ra3 {[%emt 0:00:00]} 49. h4 {[%emt 0:00:00]} f4+ {[%emt 0:01:37]} 50. Bxf4 {[%emt 0:00:00]} Nxh4 {[%emt 0:00:04]} 51. Bg5 {[%emt 0:00:00]} Ng6 {[%emt 0:01:26]} 52. Rd8+ {[%emt 0:00:00]} Kb7 {[%emt 0:00:04]} 53. Kd4 {[%emt 0:00:00]} Rxd3+ {[%emt 0:00:10]} 54. Kxd3 {[%emt 0:00:00]} Ne5+ {[%emt 0:00:05]} 55. Ke4 {[%emt 0:00:00]} Nxc4 {[%emt 0:00:09]} 56. Be7 {[%emt 0:08:34]} Na5 {[%emt 0:00:25]} 57. Rh8 {[%emt 0:00:00]} Bb3 {[%emt 0:01:00]} 58. f4 {[%emt 0:00:00]} Nc4 {[%emt 0:00:54]} 59. Kd4 {[%emt 0:00:00]} Na5 {[%emt 0:00:44]} 60. Kc3 {[%emt 0:00:00]} Bc4 {[%emt 0:00:15]} 61. Bb4 {[%emt 0:00:00]} Bxb5 {[%emt 0:00:08]} 62. Bxa5 {[%emt 0:00:00]} bxa5 {[%emt 0:00:05]} 63. Rxh7 {[%emt 0:00:00]} Bd7 {[%emt 0:00:20]} 64. f5 {[%emt 0:00:00]} Be8 {[%emt 0:01:10]} 65. Rh8 {[%emt 0:00:00]} Bc6 {[%emt 0:00:10]} 66. Rf8 {[%emt 0:00:00]} Bd5 {[%emt 0:00:31]} 67. g5 {[%emt 0:00:00]} a4 {[%emt 0:02:18]} 68. g6 {[%emt 0:00:08]} fxg6 {[%emt 0:00:12]} 69. fxg6 {[%emt 0:00:06]} a3 {[%emt 0:00:48]} 70. g7 {[%emt 0:00:08]} a2 {[%emt 0:00:08]} 71. Kb2 {[%emt 0:00:05]} 1-0

[Event "Niedersachsen-ch A 2024"]
[Site "Verden Aller"]
[Date "2024.01.05"]
[Round "4.22"]
[White "Seer, Maurice"]
[Black "Aden, Dagmar"]
[Result "1/2-1/2"]
[ECO "B07"]
[WhiteElo "1912"]
[BlackElo "1766"]
[Annotator "NA RC"]
[PlyCount "49"]
[EventDate "2024.01.01"]
[EventType "swiss"]
[EventCountry "GER"]
[SourceTitle "playchess.com"]
[Source "ChessBase"]
[SourceQuality "1"]
[TimeControl "40/5400+30:1800+30"]

1. e4 {[%emt 0:00:03]} g6 {[%emt 0:00:11]} 2. d4 {[%emt 0:00:10]} Bg7 {[%emt 0:00:14]} 3. Nc3 {[%emt 0:00:12]} d6 {[%emt 0:00:28]} 4. Be3 {[%emt 0:02:56]} Nf6 {[%emt 0:01:26]} 5. f3 {[%emt 0:01:14]} Nbd7 {[%emt 0:01:56]} 6. Qd2 {[%emt 0:02:30]} c6 {[%emt 0:02:48]} 7. O-O-O {[%emt 0:02:44]} Qa5 {[%emt 0:01:50]} 8. Kb1 {[%emt 0:00:39]} b5 {[%emt 0:10:42]} 9. Nd5 {[%emt 0:03:14]} Qxd2 {[%emt 0:05:54]} 10. Nxf6+ {[%emt 0:00:28]} Bxf6 {[%emt 0:00:22]} 11. Rxd2 {[%emt 0:00:35]} O-O {[%emt 0:01:46]} 12. f4 {[%emt 0:08:10]} Nb6 {[%emt 0:03:31]} 13. b3 {[%emt 0:11:42]} Be6 {[%emt 0:04:53]} 14. Nf3 {[%emt 0:04:51]} Rfb8 {[%emt 0:02:25]} 15. Bd3 {[%emt 0:07:37]} a5 {[%emt 0:02:25]} 16. h4 {[%emt 0:18:18]} Bg4 {[%emt 0:05:52]} 17. Nh2 {[%emt 0:03:32]} Bd7 {[%emt 0:03:14]} 18. g4 {[%emt 0:01:27]} Nc4 {[%emt 0:04:23]} 19. Bxc4 {[%emt 0:02:37]} bxc4 {[%emt 0:00:08]} 20. Rg2 {[%emt 0:07:39]} cxb3 {[%emt 0:00:37]} 21. cxb3 {[%emt 0:00:37]} a4 {[%emt 0:02:22]} 22. Rb2 {[%emt 0:02:02]} axb3 {[%emt 0:02:31]} 23. Rxb3 {[%emt 0:01:05]} Rxb3+ {[%emt 0:01:42]} 24. axb3 {[%emt 0:00:12]} Be6 {[%emt 0:01:14]} 25. e5 {[%emt 0:06:43]} 1/2-1/2